fUSD/lending_fUSD_20251117
["ID","MTS","AMOUNT","RATE_DAILY","PERIOD"]
[394235596,1763398542133,-500.0,0.00041447,120]
[394235597,1763398542172,-500.0,0.00041447,120]
[394235598,1763398542211,-500.0,0.00041447,120]
[394235599,1763398542251,-500.0,0.00041447,120]
[394235600,1763398542290,-181.6561626,0.00041447,120]
[394235601,1763398542330,-500.0,0.00041447,120]
[394235602,1763398542371,-243.55878235,0.00041447,120]
[394235603,1763398542423,-500.0,0.00041447,120]
[394235604,1763398542471,-500.0,0.00041447,120]
[394235605,1763398542519,-500.0,0.00041447,120]
[394235606,1763398542566,-500.0,0.00041447,120]
[394235607,1763398542614,-326.41131355,0.00041447,120]
[394235608,1763398542660,-500.0,0.00041447,120]
[394235609,1763398542709,-500.0,0.00041447,120]
[394235610,1763398542757,-500.0,0.00041447,120]
[394235611,1763398542805,-500.0,0.00041447,120]
[394235612,1763398542855,-188.03111064,0.00041447,120]
[394235613,1763398542904,-500.0,0.00041447,120]
[394235614,1763398542954,-537.23051223,0.00041447,120]
[394235615,1763398543006,-288.14931185,0.00041447,120]
[394235616,1763398543052,-500.0,0.00041447,120]
[394235617,1763398543096,-500.0,0.00041447,120]
[394235618,1763398543151,-500.0,0.00041447,120]
[394235619,1763398543196,-500.0,0.00041447,120]
[394235620,1763398543242,-500.0,0.00041447,120]
[394235621,1763398543287,-500.0,0.00041447,120]
[394235622,1763398543331,-500.0,0.00041447,120]
[394235623,1763398543377,-511.96537494,0.00041447,120]
[394235624,1763398543423,-500.0,0.00041447,120]
[394235625,1763398543468,-500.0,0.00041447,120]
[394235626,1763398543515,-500.0,0.00041447,120]
[394235627,1763398543558,-500.0,0.00041447,120]
[394235628,1763398543600,-500.0,0.00041447,120]
[394235629,1763398543929,-500.0,0.00041447,120]
[394235630,1763398543977,-500.0,0.00041447,120]
[394235631,1763398544024,-500.0,0.00041447,120]
[394235632,1763398544069,-500.0,0.00041447,120]
[394235633,1763398544110,-500.0,0.00041447,120]
[394235634,1763398544155,-500.0,0.00041447,120]
[394235635,1763398544197,-360.39483732,0.00041447,120]
[394235636,1763398544240,-500.0,0.00041447,120]
[394235637,1763398544282,-500.0,0.00041447,120]
[394235638,1763398544323,-500.0,0.00041447,120]
[394235639,1763398544364,-500.0,0.00041447,120]
[394235640,1763398544404,-500.0,0.00041447,120]
[394235641,1763398544443,-500.0,0.00041447,120]
[394235642,1763398544483,-500.0,0.00041447,120]
[394235643,1763398544528,-610.27392194,0.00041447,120]
[394235644,1763398544567,-500.0,0.00041447,120]
[394235645,1763398544607,-500.0,0.00041447,120]
[394235646,1763398544650,-579.25650415,0.00041447,120]
[394235647,1763398544694,-500.0,0.00041447,120]
[394235648,1763398544740,-500.0,0.00041447,120]
[394235649,1763398544784,-500.0,0.00041447,120]
[394235650,1763398544828,-500.0,0.00041447,120]
[394235651,1763398544873,-500.0,0.00041447,120]
[394235652,1763398544923,-488.65991357,0.00041447,120]
[394235653,1763398544971,-500.0,0.00041447,120]
[394235654,1763398545019,-500.0,0.00041447,120]
[394235655,1763398545064,-500.0,0.00041447,120]
[394235656,1763398545110,-500.0,0.00041447,120]
[394235657,1763398545153,-500.0,0.00041447,120]
[394235658,1763398545196,-500.0,0.00041447,120]
[394235659,1763398545239,-156.23700655,0.00041447,120]
[394235660,1763398545281,-500.0,0.00041447,120]
[394235661,1763398545326,-500.0,0.00041447,120]
[394235662,1763398545369,-511.46425142,0.00041447,120]
[394235663,1763398545412,-500.0,0.00041447,120]
[394235664,1763398545455,-500.0,0.00041447,120]
[394235665,1763398545498,-500.0,0.00041447,120]
[394235666,1763398545543,-534.03981134,0.00041447,120]
[394235667,1763398545586,-563.36760681,0.00041447,120]
[394235668,1763398545631,-500.0,0.00041447,120]
[394235669,1763398545678,-500.0,0.00041447,120]
[394235670,1763398545725,-500.0,0.00041447,120]
[394235671,1763398545791,-500.0,0.00041447,120]
[394235672,1763398545864,-500.0,0.00041447,120]
[394235673,1763398545939,-500.0,0.00041447,120]
[394235674,1763398546011,-554.6766828,0.00041447,120]
[394235675,1763398546081,-459.21203705,0.00041447,120]
[394235676,1763398546148,-500.0,0.00041447,120]
[394235677,1763398546209,-500.0,0.00041447,120]
[394235678,1763398546272,-253.1866843,0.00041447,120]
[394235679,1763398546335,-500.0,0.00041447,120]
[394235680,1763398546397,-500.0,0.00041447,120]
[394235681,1763398546462,-500.0,0.00041447,120]
[394235682,1763398546524,-500.0,0.00041447,120]
[394235683,1763398546585,-364.44505592,0.00041447,120]
[394235684,1763398546647,-500.0,0.00041447,120]
[394235685,1763398546713,-263.9100867,0.00041447,120]
[394235686,1763398546779,-511.00242262,0.00041447,120]
[394235687,1763398546841,-226.96185375,0.00041447,120]
[394235688,1763398546909,-500.0,0.00041447,120]
[394235689,1763398546974,-500.0,0.00041447,120]
[394235690,1763398547037,-500.0,0.00041447,120]
[394235691,1763398547097,-500.0,0.00041447,120]
[394235692,1763398547156,-500.0,0.00041447,120]
[394235693,1763398547217,-500.0,0.00041447,120]
[394235694,1763398547277,-500.0,0.00041447,120]
[394235695,1763398547335,-500.0,0.00041447,120]
[394235696,1763398547394,-500.0,0.00041447,120]
[394235697,1763398547451,-500.0,0.00041447,120]
[394235698,1763398547511,-347.57506084,0.00041447,120]
[394235699,1763398547572,-500.0,0.00041447,120]
[394235700,1763398547631,-500.0,0.00041447,120]
[394235701,1763398547691,-500.0,0.00041447,120]
[394235702,1763398547758,-500.0,0.00041447,120]
[394235703,1763398547826,-500.0,0.00041447,120]
[394235704,1763398547893,-500.0,0.00041447,120]
[394235705,1763398547956,-500.0,0.00041447,120]
[394235706,1763398548020,-500.0,0.00041447,120]
[394235707,1763398548077,-500.0,0.00041447,120]
[394235708,1763398548137,-500.0,0.00041447,120]
[394235709,1763398548193,-504.45090048,0.00041447,120]
[394235710,1763398548248,-500.0,0.00041447,120]
[394235711,1763398548304,-277.25452459,0.00041447,120]
[394235712,1763398548616,-500.0,0.00041447,120]
[394235713,1763398548663,-379.5945939,0.00041447,120]
[394235714,1763398548718,-500.0,0.00041447,120]
[394235715,1763398548769,-500.0,0.00041447,120]
[394235716,1763398548821,-500.0,0.00041447,120]
[394235717,1763398548867,-500.0,0.00041447,120]
[394235718,1763398548912,-407.40266717,0.00041447,120]
[394235719,1763398548959,-500.0,0.00041447,120]
[394235720,1763398549007,-388.37774523,0.00041447,120]
[394235721,1763398549060,-213.91521884,0.00041447,120]
[394235722,1763398549108,-500.0,0.00041447,120]
[394235723,1763398549156,-500.0,0.00041447,120]
[394235724,1763398549202,-500.0,0.00041447,120]
[394235725,1763398549249,-516.90262192,0.00041447,120]
[394235726,1763398549293,-500.0,0.00041447,120]
[394235727,1763398549336,-500.0,0.00041447,120]
[394235728,1763398549378,-500.0,0.00041447,120]
[394235729,1763398549424,-486.33208797,0.00041447,120]
[394235730,1763398549468,-500.0,0.00041447,120]
[394235731,1763398549511,-500.0,0.00041447,120]
[394235732,1763398549554,-500.0,0.00041447,120]
[394235733,1763398549594,-500.0,0.00041447,120]
[394235734,1763398549635,-500.0,0.00041447,120]
[394235735,1763398549677,-500.0,0.00041447,120]
[394235736,1763398549720,-358.12185543,0.00041447,120]
[394235737,1763398549766,-500.0,0.00041447,120]
[394235738,1763398549812,-500.0,0.00041447,120]
[394235739,1763398549856,-500.0,0.00041447,120]
[394235740,1763398549901,-500.0,0.00041447,120]
[394235741,1763398549946,-500.0,0.00041447,120]
[394235742,1763398549994,-500.0,0.00041447,120]
[394235743,1763398550038,-500.0,0.00041447,120]
[394235744,1763398550092,-500.0,0.00041447,120]
[394235745,1763398550142,-500.0,0.00041447,120]
[394235746,1763398550190,-500.0,0.00041447,120]
[394235747,1763398550239,-500.0,0.00041447,120]
[394235748,1763398550281,-291.38997189,0.00041447,120]
[394235749,1763398550320,-500.0,0.00041447,120]
[394235750,1763398550359,-500.0,0.00041447,120]
[394235751,1763398550399,-500.0,0.00041447,120]
[394235752,1763398550439,-250.1130318,0.00041447,120]
[394235753,1763398550484,-500.0,0.00041447,120]
[394235754,1763398550527,-522.78770494,0.00041447,120]
[394235755,1763398550571,-500.0,0.00041447,120]
[394235756,1763398550610,-500.0,0.00041447,120]
[394235757,1763398550650,-500.0,0.00041447,120]
[394235758,1763398550689,-256.9741978,0.00041447,120]
[394235759,1763398550730,-345.39407412,0.00041447,120]
[394235760,1763398550773,-272.38780942,0.00041447,120]
[394235761,1763398550814,-500.0,0.00041447,120]
[394235762,1763398550855,-500.0,0.00041447,120]
[394235763,1763398550898,-500.0,0.00041447,120]
[394235764,1763398550940,-500.0,0.00041447,120]
[394235765,1763398550984,-500.0,0.00041447,120]
[394235766,1763398551029,-500.0,0.00041447,120]
[394235767,1763398551072,-500.0,0.00041447,120]
[394235768,1763398551114,-500.0,0.00041447,120]
[394235769,1763398551152,-500.0,0.00041447,120]
[394235770,1763398551191,-500.0,0.00041447,120]
[394235771,1763398551230,-500.0,0.00041447,120]
[394235772,1763398551271,-500.0,0.00041447,120]
[394235773,1763398551309,-500.0,0.00041447,120]
[394235774,1763398551347,-500.0,0.00041447,120]
[394235775,1763398551385,-500.0,0.00041447,120]
[394235776,1763398551427,-500.0,0.00041447,120]
[394235777,1763398551469,-500.0,0.00041447,120]
[394235778,1763398551514,-500.0,0.00041447,120]
[394235779,1763398551557,-500.0,0.00041447,120]
[394235780,1763398551597,-637.20293402,0.00041447,120]
[394235781,1763398551636,-510.66971121,0.00041447,120]
[394235782,1763398551677,-500.0,0.00041447,120]
[394235783,1763398551719,-500.0,0.00041447,120]
[394235784,1763398551761,-439.86178917,0.00041447,120]
[394235785,1763398551804,-500.0,0.00041447,120]
[394235786,1763398551846,-500.0,0.00041447,120]
[394235787,1763398551889,-500.0,0.00041447,120]
[394235788,1763398551935,-500.0,0.00041447,120]
[394235789,1763398551978,-500.0,0.00041447,120]
[394235790,1763398552025,-464.86023111,0.00041447,120]
[394235791,1763398552072,-500.0,0.00041447,120]
[394235792,1763398552112,-500.0,0.00041447,120]
[394235793,1763398552153,-500.0,0.00041447,120]
[394235794,1763398552194,-500.0,0.00041447,120]
[394235795,1763398552233,-495.13458454,0.00041447,120]
[394235796,1763398552274,-500.0,0.00041447,120]
[394235797,1763398552483,-500.0,0.00041447,120]
[394235798,1763398552528,-432.03042445,0.00041447,120]
[394235799,1763398552573,-500.0,0.00041447,120]
[394235800,1763398552618,-500.0,0.00041447,120]
[394235801,1763398552661,-500.0,0.00041447,120]
[394235802,1763398552706,-500.0,0.00041447,120]
[394235803,1763398552751,-500.0,0.00041447,120]
[394235804,1763398552795,-500.0,0.00041447,120]
[394235805,1763398552839,-500.0,0.00041447,120]
[394235806,1763398552883,-1441.82,0.00041447,120]
[394235807,1763398552928,-500.0,0.00041447,120]
[394235808,1763398552975,-500.0,0.00041447,120]
[394235809,1763398553021,-500.0,0.00041447,120]
[394235810,1763398553066,-500.0,0.00041447,120]
[394235811,1763398553110,-1441.82,0.00041447,120]
[394235812,1763398553153,-500.0,0.00041447,120]
[394235813,1763398553197,-500.0,0.00041447,120]
[394235814,1763398553244,-500.0,0.00041447,120]
[394235815,1763398553290,-500.0,0.00041447,120]
[394235816,1763398553333,-500.0,0.00041447,120]
[394235817,1763398553380,-500.0,0.00041447,120]
[394235818,1763398553435,-1441.82,0.00041447,120]
[394235819,1763398553491,-500.0,0.00041447,120]
[394235820,1763398553549,-500.0,0.00041447,120]
[394235821,1763398553598,-500.0,0.00041447,120]
[394235822,1763398553644,-467.66509025,0.00041447,120]
[394235823,1763398553692,-500.0,0.00041447,120]
[394235824,1763398553741,-500.0,0.00041447,120]
[394235825,1763398553789,-1441.82,0.00041447,120]
[394235826,1763398553836,-468.65111235,0.00041447,120]
[394235827,1763398553885,-500.0,0.00041447,120]
[394235828,1763398553932,-500.0,0.00041447,120]
[394235829,1763398553981,-11905.48,0.00041447,120]
[394235830,1763398554032,-500.0,0.00041447,120]
[394235831,1763398554082,-500.0,0.00041447,120]
[394235832,1763398554134,-500.0,0.00041447,120]
[394235833,1763398554187,-1441.82,0.00041447,120]
[394235834,1763398554238,-500.0,0.00041447,120]
[394235835,1763398554284,-499.04171637,0.00041447,120]
[394235836,1763398554329,-11905.48,0.00041447,120]
[394235837,1763398554373,-500.0,0.00041447,120]
[394235838,1763398554419,-1441.82,0.00041447,120]
[394235839,1763398554465,-500.0,0.00041447,120]
[394235840,1763398554517,-500.0,0.00041447,120]
[394235841,1763398554568,-500.0,0.00041447,120]
[394235842,1763398554616,-11905.48,0.00041447,120]
[394235843,1763398554663,-1441.82,0.00041447,120]
[394235844,1763398554710,-500.0,0.00041447,120]
[394235845,1763398554754,-500.0,0.00041447,120]
[394235846,1763398554799,-500.0,0.00041447,120]
[394235847,1763398554851,-500.0,0.00041447,120]
[394235848,1763398554898,-11905.48,0.00041447,120]
[394235849,1763398554945,-500.0,0.00041447,120]
[394235850,1763398554994,-500.0,0.00041447,120]
[394235851,1763398555041,-1441.82,0.00041447,120]
[394235852,1763398555085,-233.56663483,0.00041447,120]
[394235853,1763398555131,-500.0,0.00041447,120]
[394235854,1763398555176,-11905.48,0.00041447,120]
[394235855,1763398555219,-500.0,0.00041447,120]
[394235856,1763398555263,-1441.82,0.00041447,120]
[394235857,1763398555307,-185.20587168,0.00041447,120]
[394235858,1763398555352,-500.0,0.00041447,120]
[394235859,1763398555394,-500.0,0.00041447,120]
[394235860,1763398555435,-11905.48,0.00041447,120]
[394235861,1763398555476,-500.0,0.00041447,120]
[394235862,1763398555519,-1441.82,0.00041447,120]
[394235863,1763398555563,-500.0,0.00041447,120]
[394235864,1763398555607,-320.76459772,0.00041447,120]
[394235865,1763398555656,-500.0,0.00041447,120]
[394235866,1763398555702,-1441.82,0.00041447,120]
[394235867,1763398555750,-500.0,0.00041447,120]
[394235868,1763398555796,-500.0,0.00041447,120]
[394235869,1763398555841,-11905.48,0.00041447,120]
[394235870,1763398555887,-442.08643584,0.00041447,120]
[394235871,1763398555934,-1441.82,0.00041447,120]
[394235872,1763398555982,-563.1525353,0.00041447,120]
[394235873,1763398556029,-11905.48,0.00041447,120]
[394235874,1763398556074,-1441.82,0.00041447,120]
[394235875,1763398556125,-387.33889417,0.00041447,120]
[394235876,1763398556172,-500.0,0.00041447,120]
[394235877,1763398556223,-500.0,0.00041447,120]
[394235878,1763398556274,-11905.48,0.00041447,120]
[394235879,1763398556325,-1441.82,0.00041447,120]
[394235880,1763398556368,-433.099118,0.00041447,120]
[394235881,1763398556416,-500.0,0.00041447,120]
[394235882,1763398556462,-607.21578563,0.00041447,120]
[394235883,1763398556506,-11905.48,0.00041447,120]
[394235884,1763398556550,-1441.82,0.00041447,120]
[394235885,1763398556596,-500.0,0.00041447,120]
[394235886,1763398556639,-11905.48,0.00041447,120]
[394235887,1763398556683,-1441.82,0.00041447,120]
[394235888,1763398556727,-500.0,0.00041447,120]
[394235889,1763398556774,-1441.82,0.00041447,120]
[394235890,1763398556818,-500.0,0.00041447,120]
[394235891,1763398556864,-1441.82,0.00041447,120]
[394235892,1763398557140,-11905.48,0.00041447,120]
[394235893,1763398557186,-500.0,0.00041447,120]
[394235894,1763398557230,-115.26014223,0.00041447,120]
[394235911,1763398594277,250.0,0.00017,2]
[394235912,1763398607967,6416.52,0.00018001,10]
[394235935,1763398628324,6416.1,0.00018001,2]
[394235947,1763398664025,189.54,0.00013699,2]
[394235955,1763398811850,-327.63,0.00018931,2]
[394235956,1763398811873,-26.70299916,0.00018931,2]
[394235957,1763398834062,-333.29700084,0.00018931,2]
[394236117,1763399279528,-606.012,0.00033991,37]
[394236118,1763399279552,-166.845,0.00033991,37]
[394236119,1763399279578,-158.0,0.00035,120]
[394236120,1763399279602,-1492.38,0.00035732,120]
[394236121,1763399279627,-166.66,0.00036417,30]
[394236122,1763399279651,-500.0,0.00036969,120]
[394236123,1763399279676,-166.66,0.00037183,30]
[394236124,1763399279703,-166.66,0.0003795,30]
[394236125,1763399279728,-849.70876938,0.00038356,30]
[394236126,1763399279752,-849.70876938,0.00038493,30]
[394236127,1763399279776,-849.70876938,0.00038658,30]
[394236128,1763399279805,-263.31028714,0.00038707,120]
[394236129,1763399279832,-166.66,0.00038717,30]
[394236130,1763399279858,-154.4,0.0003873,120]
[394236131,1763399279885,-849.70876938,0.00038795,30]
[394236132,1763399279912,-154.4,0.0003883,120]
[394236133,1763399279937,-167.8966,0.00038888,30]
[394236134,1763399279963,-163.65657458,0.00038899,30]
[394236135,1763399279989,-154.4,0.0003893,120]
[394236136,1763399280016,-849.70876938,0.00038959,30]
[394236137,1763399280040,-187.0,0.00039,30]
[394236138,1763399280068,-154.4,0.0003903,120]
[394236139,1763399280094,-849.70876938,0.00039123,30]
[394236140,1763399280123,-333.76355686,0.00039123,30]
[394236141,1763399280149,-154.4,0.0003913,120]
[394236142,1763399280176,-154.4,0.0003923,120]
[394236143,1763399280203,-849.70876938,0.0003926,30]
[394236144,1763399280234,-333.76355686,0.00039288,30]
[394236145,1763399280268,-154.45094947,0.0003933,120]
[394236146,1763399280295,-376.79586072,0.00039394,30]
[394236147,1763399280323,-849.70876938,0.00039425,30]
[394236148,1763399280349,-333.76355686,0.00039452,30]
[394236149,1763399280380,-166.66,0.00039483,30]
[394236150,1763399280406,-422.27336462,0.00039493,30]
[394236151,1763399280430,-500.0,0.00039493,30]
[394236152,1763399280455,-500.0,0.00039493,30]
[394236153,1763399280479,-500.0,0.00039493,30]
[394236154,1763399280503,-500.0,0.00039493,120]
[394236155,1763399280527,-266.64506398,0.00039493,120]
[394236156,1763399280553,-181.28555793,0.00039562,30]
[394236157,1763399280579,-849.70876938,0.00039589,30]
[394236158,1763399280604,-333.76355686,0.00039616,30]
[394236159,1763399280630,-849.70876938,0.00039726,30]
[394236160,1763399280655,-333.76355686,0.00039753,30]
[394236161,1763399280685,-849.70876938,0.0003989,30]
[394236162,1763399280709,-333.76355686,0.00039918,30]
[394236163,1763399280734,-150.0,0.00039932,120]
[394236164,1763399280759,-500.0,0.00039989,120]
[394236165,1763399280783,-539.29737387,0.00039989,30]
[394236166,1763399280812,-500.0,0.00039999,31]
[394236167,1763399280842,-500.0,0.00039999,31]
[394236168,1763399280870,-500.0,0.00039999,31]
[394236169,1763399280899,-500.0,0.00039999,31]
[394236170,1763399281144,-500.0,0.00039999,31]
[394236171,1763399281175,-500.0,0.00039999,31]
[394236172,1763399281203,-500.0,0.00039999,31]
[394236173,1763399281233,-500.0,0.00039999,31]
[394236174,1763399281263,-500.0,0.00039999,31]
[394236175,1763399281290,-500.0,0.00039999,31]
[394236176,1763399281320,-271.95384637,0.00039999,31]
[394236177,1763399281348,-500.0,0.00039999,31]
[394236178,1763399281376,-500.0,0.00039999,31]
[394236179,1763399281404,-500.0,0.00039999,31]
[394236180,1763399281433,-500.0,0.00039999,31]
[394236181,1763399281464,-500.0,0.00039999,31]
[394236182,1763399281494,-500.0,0.00039999,31]
[394236183,1763399281521,-500.0,0.00039999,31]
[394236184,1763399281549,-500.0,0.00039999,31]
[394236185,1763399281578,-500.0,0.00039999,31]
[394236186,1763399281603,-167.47287897,0.00039999,31]
[394236187,1763399281629,-174.80839461,0.00039999,31]
[394236188,1763399281654,-228.75419922,0.00039999,31]
[394236189,1763399281680,-374.81806684,0.00039999,31]
[394236190,1763399281705,-500.0,0.00039999,31]
[394236191,1763399281731,-396.31275289,0.00039999,31]
[394236192,1763399281756,-187.0,0.0004,30]
[394236193,1763399281782,-111660.41212224,0.0004,120]
[394236194,1763399281807,-1316.16014528,0.0004,120]
[394236195,1763399281835,-10000.0,0.0004,95]
[394236196,1763399281859,-6919.0,0.0004,95]
[394236197,1763399281885,-224.80600482,0.0004,30]
[394236198,1763399281911,-181.28555793,0.0004,30]
[394236199,1763399281938,-849.70876938,0.00040027,30]
[394236200,1763399281965,-333.76355686,0.00040082,30]
[394236201,1763399281991,-333.76355686,0.00040247,30]
[394236202,1763399282018,-166.66,0.0004025,30]
[394236203,1763399282044,-150.0,0.00040343,120]
[394236204,1763399282070,-333.76355686,0.00040384,30]
[394236205,1763399282096,-181.28555793,0.00040438,30]
[394236206,1763399282123,-5888.0,0.00040498,120]
[394236207,1763399282149,-333.76355686,0.00040548,30]
[394236208,1763399282174,-258.78172801,0.00040616,120]
[394236209,1763399282200,-419.38615208,0.00040657,120]
[394236210,1763399282230,-556.81,0.000407,30]
[394236211,1763399282256,-333.76355686,0.00040712,30]
[394236212,1763399282282,-2718.0,0.00040828,120]
[394236213,1763399282308,-2718.0,0.00040849,120]
[394236214,1763399282336,-333.76355686,0.00040849,30]
[394236215,1763399282361,-325.0,0.00040877,120]
[394236216,1763399282386,-11081.0,0.00040883,117]
[394236217,1763399282411,-150.0,0.000409,30]
[394236218,1763399282437,-835.3531428,0.000409,30]
[394236219,1763399282462,-186.53999075,0.000409,30]
[394236220,1763399282487,-150.0,0.000409,30]
[394236221,1763399282511,-1166.76766662,0.000409,30]
[394236222,1763399282539,-150.0,0.000409,30]
[394236223,1763399282566,-5001.68951815,0.000409,30]
[394236224,1763399282592,-150.0,0.000409,30]
[394236225,1763399282618,-1242.96104897,0.000409,30]
[394236226,1763399282643,-1000.0,0.00040999,120]
[394236227,1763399282668,-397217.69877124,0.00041,120]
[394236228,1763399282693,-1341.0,0.00041,30]
[394236229,1763399282718,-160.0,0.00041,90]
[394236230,1763399282742,-1000.0,0.00041027,120]
[394236231,1763399282766,-312.24045408,0.0004103,104]
[394236232,1763399282790,-1000.0,0.00041054,120]
[394236233,1763399282816,-1000.0,0.00041081,120]
[394236234,1763399282841,-500.0,0.00041096,120]
[394236235,1763399282866,-500.0,0.00041096,30]
[394236236,1763399282894,-500.0,0.00041096,30]
[394236237,1763399282920,-500.0,0.00041096,30]
[394236238,1763399282946,-500.0,0.00041096,30]
[394236239,1763399282970,-500.0,0.00041096,30]
[394236240,1763399282995,-500.0,0.00041096,30]
[394236241,1763399283024,-500.0,0.00041096,30]
[394236242,1763399283051,-500.0,0.00041096,30]
[394236243,1763399283080,-500.0,0.00041096,30]
[394236244,1763399283107,-500.0,0.00041096,30]
[394236245,1763399283134,-500.0,0.00041096,30]
[394236246,1763399283161,-500.0,0.00041096,30]
[394236247,1763399283188,-500.0,0.00041096,30]
[394236248,1763399283217,-500.0,0.00041096,30]
[394236249,1763399283243,-500.0,0.00041096,30]
[394236250,1763399283270,-587.07819284,0.00041096,30]
[394236251,1763399283296,-210.3356368,0.00041096,30]
[394236252,1763399283322,-1000.0,0.00041109,120]
[394236253,1763399283347,-310.028352,0.00041169,120]
[394236254,1763399283372,-527.247811,0.00041169,120]
[394236255,1763399283399,-200.0,0.00041169,120]
[394236256,1763399283425,-150.0,0.00041181,30]
[394236257,1763399283449,-150.0,0.00041194,60]
[394236258,1763399283474,-947.56352046,0.0004133,30]
[394236259,1763399283501,-258.78172801,0.00041352,120]
[394236260,1763399283528,-500.0,0.0004137,120]
[394236261,1763399283554,-271.63412273,0.00041425,30]
[394236262,1763399283584,-177.19318739,0.00041425,30]
[394236263,1763399283610,-217.71919066,0.00041425,30]
[394236264,1763399283635,-291.50683581,0.00041425,30]
[394236265,1763399283660,-248.34887386,0.00041425,30]
[394236266,1763399283685,-190.6592067,0.00041425,30]
[394236267,1763399283709,-201.56400329,0.00041425,30]
[394236268,1763399283734,-501.56,0.00041447,50]
[394236269,1763399283759,-152.713919,0.00041447,120]
[394236270,1763399283785,-234.845407,0.00041447,120]
[394236271,1763399283810,-151.0,0.00041447,120]
[394236272,1763399283837,-152.44884,0.00041447,120]
[394236273,1763399284056,-154.707784,0.00041447,120]
[394236274,1763399284087,-151.0,0.00041447,120]
[394236275,1763399284114,-191.393216,0.00041447,120]
[394236276,1763399284141,-154.14105,0.00041447,120]
[394236277,1763399284167,-151.0,0.00041447,120]
[394236278,1763399284193,-246.66567,0.00041447,120]
[394236279,1763399284220,-151.0,0.00041447,120]
[394236280,1763399284246,-151.0,0.00041447,120]
[394236281,1763399284272,-151.0,0.00041447,120]
[394236282,1763399284300,-258.910321,0.00041447,120]
[394236283,1763399284337,-151.0,0.00041447,60]
[394236284,1763399284367,-1257.24,0.00041447,44]
[394236285,1763399284394,-151.0,0.00041447,120]
[394236286,1763399284421,-151.0,0.00041447,120]
[394236287,1763399284447,-151.0,0.00041447,120]
[394236288,1763399284473,-151.0,0.00041447,120]
[394236289,1763399284499,-307.098355,0.00041447,120]
[394236290,1763399284527,-151.0,0.00041447,120]
[394236291,1763399284552,-153.955169,0.00041447,120]
[394236292,1763399284580,-307.098355,0.00041447,120]
[394236293,1763399284606,-307.098355,0.00041447,120]
[394236294,1763399284632,-307.098355,0.00041447,120]
[394236295,1763399284660,-307.098355,0.00041447,120]
[394236296,1763399284686,-307.098355,0.00041447,120]
[394236297,1763399284712,-307.098355,0.00041447,120]
[394236298,1763399284739,-307.098355,0.00041447,120]
[394236299,1763399284772,-307.098355,0.00041447,120]
[394236300,1763399284799,-307.098355,0.00041447,120]
[394236301,1763399284827,-307.098355,0.00041447,120]
[394236302,1763399284855,-151.0,0.00041447,120]
[394236303,1763399284884,-236.260499,0.00041447,120]
[394236304,1763399284913,-307.098355,0.00041447,120]
[394236305,1763399284942,-307.098355,0.00041447,120]
[394236306,1763399284971,-307.098355,0.00041447,120]
[394236307,1763399285000,-307.098355,0.00041447,120]
[394236308,1763399285029,-307.098355,0.00041447,120]
[394236309,1763399285057,-307.098355,0.00041447,120]
[394236310,1763399285087,-307.098355,0.00041447,120]